[Event "Djerba Festival Blitz 2025"]
[Site "Djerba"]
[Date "2025.02.21"]
[Round "1.27"]
[White "Amrane, Abdellah"]
[Black "Fengal, Zineddine"]
[Result "1-0"]
[ECO "C01"]
[WhiteElo "2021"]
[BlackElo "1439"]
[PlyCount "94"]
[EventDate "2025.02.15"]
[EventType "swiss"]
[EventCountry "TUN"]
[TimeControl "180+3"]

1. e4 {[%emt 0:03:06]} e6 2. d4 {[%emt 0:00:03]} d5 {[%emt 0:03:09]} 3. exd5 {[%emt 0:00:03]} exd5 {[%emt 0:00:03]} 4. c4 Nf6 {[%emt 0:00:03]} 5. Nc3 {[%emt 0:00:06]} Be7 {[%emt 0:00:03]} 6. Nf3 {[%emt 0:00:03]} Bf5 {[%emt 0:00:03]} 7. Bd3 {[%emt 0:00:03]} Bg6 {[%emt 0:00:03]} 8. O-O {[%emt 0:00:03]} O-O {[%emt 0:00:03]} 9. Bxg6 {[%emt 0:00:03]} hxg6 {[%emt 0:00:03]} 10. Bf4 {[%emt 0:00:03]} Nc6 {[%emt 0:00:03]} 11. c5 {[%emt 0:00:03]} Re8 {[%emt 0:00:03]} 12. a3 {[%emt 0:00:03]} Qd7 {[%emt 0:00:03]} 13. Ne5 {[%emt 0:00:03]} Nxe5 {[%emt 0:00:03]} 14. dxe5 {[%emt 0:00:03]} Nh5 {[%emt 0:00:03]} 15. Be3 {[%emt 0:00:03]} c6 {[%emt 0:00:03]} 16. g4 {[%emt 0:00:03]} Bf8 {[%emt 0:00:03]} 17. gxh5 {[%emt 0:00:03]} Rxe5 {[%emt 0:00:03]} 18. hxg6 {[%emt 0:00:03]} fxg6 {[%emt 0:00:03]} 19. h3 {[%emt 0:00:03]} Qxh3 {[%emt 0:00:03]} 20. Bf4 {[%emt 0:00:03]} Rh5 {[%emt 0:00:03]} 21. Qxh5 {[%emt 0:00:03]} Qxh5 {[%emt 0:00:03]} 22. b4 {[%emt 0:00:03]} Re8 {[%emt 0:00:03]} 23. Rae1 {[%emt 0:00:03]} Rxe1 {[%emt 0:00:03]} 24. Rxe1 {[%emt 0:00:03]} Qg4+ {[%emt 0:00:03]} 25. Bg3 Qd4 {[%emt 0:00:03]} 26. Ne2 {[%emt 0:00:06]} Qb2 {[%emt 0:00:03]} 27. Nf4 {[%emt 0:00:03]} g5 {[%emt 0:00:03]} 28. Ng6 {[%emt 0:00:03]} Qxa3 {[%emt 0:00:03]} 29. Bd6 {[%emt 0:00:03]} Qxb4 {[%emt 0:00:03]} 30. Re8 {[%emt 0:00:03]} Qb1+ {[%emt 0:00:03]} 31. Kg2 {[%emt 0:00:03]} Qxg6 {[%emt 0:00:03]} 32. Rxf8+ {[%emt 0:00:03]} Kh7 33. Bg3 {[%emt 0:00:03]} Qe4+ {[%emt 0:00:06]} 34. Kh2 {[%emt 0:00:03]} Qg6 {[%emt 0:00:03]} 35. Rb8 {[%emt 0:00:03]} Qh5+ {[%emt 0:00:03]} 36. Kg2 {[%emt 0:00:03]} Qf7 {[%emt 0:00:03]} 37. Rd8 {[%emt 0:00:03]} g4 {[%emt 0:00:03]} 38. Rd6 {[%emt 0:00:03]} Qf3+ {[%emt 0:00:03]} 39. Kg1 a5 {[%emt 0:00:03]} 40. Rd7 {[%emt 0:00:06]} a4 {[%emt 0:00:03]} 41. Be5 {[%emt 0:00:03]} a3 {[%emt 0:00:03]} 42. Rxg7+ {[%emt 0:00:03]} Kh6 43. Rxb7 {[%emt 0:00:03]} a2 {[%emt 0:00:06]} 44. Ra7 {[%emt 0:00:03]} Qd1+ {[%emt 0:00:03]} 45. Kh2 {[%emt 0:00:03]} Qf3 {[%emt 0:00:03]} 46. Rxa2 {[%emt 0:00:03]} Qh3+ {[%emt 0:00:03]} 47. Kg1 {[%emt 0:00:03]} Qh4 {[%emt 0:00:03]} 1-0

[Event "Djerba Festival Blitz 2025"]
[Site "Djerba"]
[Date "2025.02.21"]
[Round "1.28"]
[White "Mekki, Walid"]
[Black "Messala, Noureddine"]
[Result "1/2-1/2"]
[ECO "B31"]
[WhiteElo "1578"]
[BlackElo "2069"]
[PlyCount "94"]
[EventDate "2025.02.15"]
[EventType "swiss"]
[EventCountry "TUN"]
[TimeControl "180+3"]

1. e4 {[%emt 0:03:06]} c5 {[%emt 0:00:04]} 2. Nf3 {[%emt 0:00:00]} Nc6 {[%emt 0:00:02]} 3. Bb5 {[%emt 0:00:00]} g6 {[%emt 0:00:04]} 4. d3 {[%emt 0:00:00]} Bg7 {[%emt 0:00:02]} 5. Nc3 {[%emt 0:00:00]} e6 {[%emt 0:00:33]} 6. Be3 {[%emt 0:00:00]} d6 {[%emt 0:00:04]} 7. a3 {[%emt 0:00:00]} Nge7 {[%emt 0:00:19]} 8. Qd2 {[%emt 0:00:00]} h6 {[%emt 0:00:19]} 9. h3 {[%emt 0:00:00]} a6 {[%emt 0:00:06]} 10. Ba4 {[%emt 0:00:00]} b5 {[%emt 0:00:06]} 11. Bb3 {[%emt 0:00:00]} Nd4 {[%emt 0:00:18]} 12. Bxd4 {[%emt 0:00:00]} cxd4 {[%emt 0:00:02]} 13. Ne2 {[%emt 0:00:00]} Qb6 {[%emt 0:00:14]} 14. O-O {[%emt 0:00:00]} O-O {[%emt 0:00:07]} 15. Nf4 {[%emt 0:00:00]} Bb7 {[%emt 0:00:16]} 16. Rae1 {[%emt 0:00:00]} e5 {[%emt 0:00:23]} 17. Nd5 {[%emt 0:00:00]} Nxd5 {[%emt 0:00:18]} 18. exd5 {[%emt 0:00:00]} Kh7 {[%emt 0:00:17]} 19. Re4 {[%emt 0:00:00]} f5 {[%emt 0:00:06]} 20. Ree1 {[%emt 0:00:00]} Qc5 {[%emt 0:00:03]} 21. Nh4 {[%emt 0:00:00]} Bxd5 {[%emt 0:00:05]} 22. Bxd5 {[%emt 0:00:00]} Qxd5 {[%emt 0:00:02]} 23. Kh1 {[%emt 0:00:00]} Rac8 {[%emt 0:00:04]} 24. b3 {[%emt 0:00:00]} Rf7 {[%emt 0:00:07]} 25. Re2 {[%emt 0:00:00]} Bf6 {[%emt 0:00:05]} 26. Nf3 {[%emt 0:00:00]} e4 {[%emt 0:00:03]} 27. Ng1 {[%emt 0:00:00]} Re7 {[%emt 0:00:05]} 28. c3 {[%emt 0:00:06]} dxc3 {[%emt 0:00:03]} 29. Qc2 {[%emt 0:00:02]} exd3 {[%emt 0:00:04]} 30. Rxe7+ {[%emt 0:00:12]} Bxe7 {[%emt 0:00:01]} 31. Qc1 {[%emt 0:00:08]} d2 {[%emt 0:00:06]} 32. Qc2 {[%emt 0:00:03]} Bf6 {[%emt 0:00:04]} 33. Rd1 {[%emt 0:00:04]} Re8 {[%emt 0:00:02]} 34. Nf3 {[%emt 0:00:04]} Re2 {[%emt 0:00:05]} 35. Rg1 {[%emt 0:00:16]} Bd4 {[%emt 0:00:03]} 36. Rf1 {[%emt 0:00:04]} Rxf2 {[%emt 0:00:04]} 37. Rxf2 {[%emt 0:00:05]} Bxf2 {[%emt 0:00:02]} 38. Qd1 {[%emt 0:00:07]} Qd3 {[%emt 0:00:02]} 39. Kh2 {[%emt 0:00:11]} Be3 {[%emt 0:00:03]} 40. Nh4 {[%emt 0:00:06]} c2 {[%emt 0:00:03]} 41. Qf3 {[%emt 0:00:15]} Qe4 {[%emt 0:00:04]} 42. Nxg6 {[%emt 0:00:06]} Kxg6 {[%emt 0:00:03]} 43. Qg3+ {[%emt 0:00:02]} Kf7 {[%emt 0:00:02]} 44. Qxd6 {[%emt 0:00:05]} Bf4+ {[%emt 0:00:03]} 45. Qxf4 {[%emt 0:00:06]} Qxf4+ {[%emt 0:00:02]} 46. g3 {[%emt 0:00:13]} Qf2+ {[%emt 0:00:11]} 47. Kh1 {[%emt 0:00:00]} d1=Q# {[%emt 0:00:00]} 1/2-1/2

[Event "Djerba Festival Blitz 2025"]
[Site "Djerba"]
[Date "2025.02.21"]
[Round "1.30"]
[White "Feurprier, Matteo"]
[Black "Ajbara Jamal"]
[Result "1-0"]
[ECO "B45"]
[WhiteElo "1537"]
[BlackElo "1898"]
[PlyCount "66"]
[EventDate "2025.02.15"]
[EventType "swiss"]
[EventCountry "TUN"]
[TimeControl "180+3"]

1. e4 {[%emt 0:03:06]} c5 {[%emt 0:03:06]} 2. Nf3 e6 {[%emt 0:00:03]} 3. d4 cxd4 {[%emt 0:00:03]} 4. Nxd4 Nc6 {[%emt 0:00:03]} 5. Nc3 {[%emt 0:00:12]} Nf6 {[%emt 0:00:03]} 6. Nxc6 {[%emt 0:00:03]} bxc6 7. Bd3 {[%emt 0:00:03]} e5 {[%emt 0:00:06]} 8. Bg5 {[%emt 0:00:03]} Bc5 {[%emt 0:00:03]} 9. O-O {[%emt 0:00:03]} O-O {[%emt 0:00:03]} 10. Kh1 {[%emt 0:00:03]} h6 {[%emt 0:00:03]} 11. Bh4 {[%emt 0:00:03]} g5 {[%emt 0:00:03]} 12. Bg3 {[%emt 0:00:03]} d6 {[%emt 0:00:03]} 13. Na4 {[%emt 0:00:03]} Bb4 {[%emt 0:00:03]} 14. a3 {[%emt 0:00:03]} Ba5 15. b4 {[%emt 0:00:03]} Bc7 {[%emt 0:00:06]} 16. Nc3 {[%emt 0:00:03]} Bg4 {[%emt 0:00:03]} 17. f3 {[%emt 0:00:03]} Be6 {[%emt 0:00:03]} 18. Nb1 {[%emt 0:00:03]} Nh5 {[%emt 0:00:03]} 19. Qe1 {[%emt 0:00:03]} Qf6 {[%emt 0:00:03]} 20. Nd2 {[%emt 0:00:03]} d5 {[%emt 0:00:03]} 21. exd5 {[%emt 0:00:03]} cxd5 {[%emt 0:00:03]} 22. Nb3 {[%emt 0:00:03]} Rac8 {[%emt 0:00:03]} 23. Nc5 {[%emt 0:00:03]} Nxg3+ {[%emt 0:00:03]} 24. Qxg3 {[%emt 0:00:03]} e4 {[%emt 0:00:03]} 25. fxe4 {[%emt 0:00:03]} Bf4 {[%emt 0:00:03]} 26. Qf3 {[%emt 0:00:03]} dxe4 {[%emt 0:00:03]} 27. Bxe4 {[%emt 0:00:03]} Qe5 {[%emt 0:00:03]} 28. g3 {[%emt 0:00:03]} Bd2 {[%emt 0:00:03]} 29. Rae1 {[%emt 0:00:03]} Bxe1 {[%emt 0:00:03]} 30. Rxe1 {[%emt 0:00:03]} f5 {[%emt 0:00:03]} 31. Nxe6 {[%emt 0:00:03]} fxe4 {[%emt 0:00:03]} 32. Qb3 {[%emt 0:00:03]} Rf7 {[%emt 0:00:03]} 33. Nc5 {[%emt 0:00:03]} Qd5 {[%emt 0:00:03]} 1-0

[Event "Djerba Festival Blitz 2025"]
[Site "Djerba"]
[Date "2025.02.21"]
[Round "1.31"]
[White "Doucet, Pierre-Alois"]
[Black "Doucet, Jean Gabriel"]
[Result "1-0"]
[ECO "C79"]
[WhiteElo "2027"]
[BlackElo "1506"]
[PlyCount "111"]
[EventDate "2025.02.15"]
[EventType "swiss"]
[EventCountry "TUN"]
[TimeControl "180+3"]

1. e4 {[%emt 0:03:06]} e5 {[%emt 0:00:02]} 2. Nf3 {[%emt 0:00:00]} Nc6 {[%emt 0:00:02]} 3. Bb5 {[%emt 0:00:00]} d6 {[%emt 0:00:03]} 4. c3 {[%emt 0:00:00]} Nf6 {[%emt 0:00:02]} 5. O-O {[%emt 0:00:00]} a6 {[%emt 0:00:02]} 6. Ba4 {[%emt 0:00:00]} Be7 {[%emt 0:00:05]} 7. d4 {[%emt 0:00:00]} O-O {[%emt 0:00:03]} 8. Bxc6 {[%emt 0:00:00]} bxc6 {[%emt 0:00:03]} 9. dxe5 {[%emt 0:00:00]} dxe5 {[%emt 0:00:03]} 10. Qxd8 {[%emt 0:00:00]} Rxd8 {[%emt 0:00:02]} 11. Nxe5 {[%emt 0:00:00]} Bb7 {[%emt 0:00:06]} 12. Bg5 {[%emt 0:00:00]} h6 {[%emt 0:00:02]} 13. Bxf6 {[%emt 0:00:00]} Bxf6 {[%emt 0:00:02]} 14. Ng4 {[%emt 0:00:00]} Be7 {[%emt 0:00:21]} 15. Ne3 {[%emt 0:00:00]} c5 {[%emt 0:00:04]} 16. Na3 {[%emt 0:00:00]} Bxe4 {[%emt 0:00:02]} 17. Rfe1 {[%emt 0:00:00]} Bc6 {[%emt 0:00:11]} 18. Rad1 {[%emt 0:00:00]} Bf6 {[%emt 0:00:03]} 19. h3 {[%emt 0:00:00]} Re8 {[%emt 0:00:05]} 20. Ng4 {[%emt 0:00:00]} Bg5 {[%emt 0:00:04]} 21. Nc4 {[%emt 0:00:00]} Rxe1+ {[%emt 0:00:06]} 22. Rxe1 {[%emt 0:01:03]} Re8 {[%emt 0:00:03]} 23. Rxe8+ {[%emt 0:00:00]} Bxe8 {[%emt 0:00:02]} 24. Nge3 {[%emt 0:00:00]} Bxe3 {[%emt 0:00:06]} 25. Nxe3 {[%emt 0:00:00]} Bc6 {[%emt 0:00:07]} 26. f3 {[%emt 0:00:00]} f6 {[%emt 0:00:02]} 27. Kf2 {[%emt 0:00:00]} Kf7 {[%emt 0:00:02]} 28. Nc4 {[%emt 0:00:00]} Bd5 {[%emt 0:00:06]} 29. Nd2 {[%emt 0:00:00]} c6 {[%emt 0:00:10]} 30. b3 {[%emt 0:00:00]} Ke6 {[%emt 0:00:04]} 31. Ke3 {[%emt 0:00:27]} g5 {[%emt 0:00:02]} 32. g3 {[%emt 0:00:00]} f5 {[%emt 0:00:04]} 33. f4 {[%emt 0:00:00]} g4 {[%emt 0:00:03]} 34. hxg4 {[%emt 0:00:00]} fxg4 {[%emt 0:00:03]} 35. Ne4 {[%emt 0:00:00]} c4 {[%emt 0:00:13]} 36. Nc5+ {[%emt 0:00:00]} Kd6 {[%emt 0:00:02]} 37. Nxa6 {[%emt 0:00:00]} cxb3 {[%emt 0:00:02]} 38. axb3 {[%emt 0:00:00]} Bxb3 {[%emt 0:00:03]} 39. Kd4 {[%emt 0:00:00]} Bc2 {[%emt 0:00:09]} 40. Nc5 {[%emt 0:00:00]} Bf5 {[%emt 0:00:07]} 41. Nb7+ {[%emt 0:00:02]} Kc7 {[%emt 0:00:03]} 42. Na5 {[%emt 0:00:01]} Kb6 {[%emt 0:00:03]} 43. Nc4+ {[%emt 0:00:03]} Kb5 {[%emt 0:00:02]} 44. Nd6+ {[%emt 0:00:02]} Kb6 {[%emt 0:00:02]} 45. Nxf5 {[%emt 0:00:02]} c5+ {[%emt 0:00:02]} 46. Kd5 {[%emt 0:00:02]} h5 {[%emt 0:00:02]} 47. Nh4 {[%emt 0:00:02]} Kb5 {[%emt 0:00:01]} 48. f5 {[%emt 0:00:02]} Kb6 {[%emt 0:00:03]} 49. f6 {[%emt 0:00:01]} c4 {[%emt 0:00:02]} 50. f7 {[%emt 0:00:03]} Kb5 {[%emt 0:00:02]} 51. f8=N {[%emt 0:00:40]} Kb6 {[%emt 0:00:02]} 52. Nd7+ {[%emt 0:00:00]} Kc7 {[%emt 0:00:03]} 53. Ne5 {[%emt 0:00:00]} Kd8 {[%emt 0:00:02]} 54. Nxc4 {[%emt 0:00:00]} Ke7 {[%emt 0:00:01]} 55. Ne3 {[%emt 0:00:00]} Kf6 {[%emt 0:00:02]} 56. Nef5 {[%emt 0:00:00] Ke7 c4+ Ke8 c5 Kd7 c6+ Kc7 Kc5 Kd8 Kd6 Kc8 Ne7+ Kd8 Nhf5 Ke8 Ng7+ Kd8 c7#} 1-0

[Event "Djerba Festival Blitz 2025"]
[Site "Djerba"]
[Date "2025.02.21"]
[Round "1.32"]
[White "Baduel Ghalimi, Maxence"]
[Black "MEZGOURI NOUREDDINE"]
[Result "0-1"]
[ECO "B00"]
[WhiteElo "1506"]
[BlackElo "1891"]
[PlyCount "29"]
[EventDate "2025.02.15"]
[EventType "swiss"]
[EventCountry "TUN"]
[TimeControl "180+3"]

1. d4 {[%emt 0:00:03]} d6 {[%emt 0:00:03]} 2. e4 {[%emt 0:00:03]} Nc6 {[%emt 0:00:04]} 3. c3 {[%emt 0:00:02]} a6 {[%emt 0:00:02]} 4. Bd3 {[%emt 0:00:05]} Nf6 {[%emt 0:00:02]} 5. Ne2 {[%emt 0:00:03]} e5 {[%emt 0:03:07]} 6. Qc2 {[%emt 0:00:04]} Be7 {[%emt 0:00:00]} 7. h3 {[%emt 0:00:04]} O-O {[%emt 0:00:06]} 8. O-O {[%emt 0:00:02]} h6 {[%emt 0:00:00]} 9. f4 {[%emt 0:00:03]} exd4 {[%emt 0:00:00]} 10. cxd4 {[%emt 0:00:03]} Nd7 {[%emt 0:00:00]} 11. a3 {[%emt 0:00:04]} b5 {[%emt 0:00:12]} 12. Nd2 {[%emt 0:00:05]} Bb7 {[%emt 0:00:00]} 13. e5 {[%emt 0:00:05]} dxe5 {[%emt 0:00:00]} 14. fxe5 {[%emt 0:00:02]} Bg5 {[%emt 0:00:00]} 15. Ne4 {[%emt 0:00:06]} 0-1

[Event "Djerba Festival Blitz 2025"]
[Site "Djerba"]
[Date "2025.02.21"]
[Round "1.33"]
[White "Msalmi, Hamed"]
[Black "Mathanchandaran, Dev"]
[Result "1-0"]
[ECO "C91"]
[WhiteElo "1747"]
[BlackElo "1650"]
[PlyCount "67"]
[EventDate "2025.02.15"]
[EventType "swiss"]
[EventCountry "TUN"]
[TimeControl "180+3"]

1. e4 {[%emt 0:00:03]} e5 {[%emt 0:00:04]} 2. Nf3 {[%emt 0:00:02]} Nc6 {[%emt 0:00:02]} 3. Bb5 {[%emt 0:00:02]} a6 {[%emt 0:00:02]} 4. Ba4 {[%emt 0:00:03]} Nf6 {[%emt 0:00:03]} 5. O-O {[%emt 0:00:02]} b5 {[%emt 0:00:04]} 6. Bb3 {[%emt 0:00:02]} Be7 {[%emt 0:00:03]} 7. c3 {[%emt 0:00:04]} O-O {[%emt 0:00:09]} 8. d4 {[%emt 0:00:03]} d6 {[%emt 0:00:35]} 9. Re1 {[%emt 0:00:49]} Bg4 {[%emt 0:00:14]} 10. d5 {[%emt 0:00:22]} Na5 {[%emt 0:00:03]} 11. Bc2 {[%emt 0:00:05]} c6 {[%emt 0:00:16]} 12. b4 {[%emt 0:00:07]} Nc4 {[%emt 0:00:10]} 13. dxc6 {[%emt 0:00:05]} Qb6 {[%emt 0:00:08]} 14. Bd3 {[%emt 0:00:22]} Qxc6 {[%emt 0:00:05]} 15. h3 {[%emt 0:00:14]} Be6 {[%emt 0:00:16]} 16. Ng5 {[%emt 0:00:06]} h6 {[%emt 0:00:02]} 17. Nxe6 {[%emt 0:00:06]} fxe6 {[%emt 0:00:03]} 18. a4 {[%emt 0:00:02]} Nd7 {[%emt 0:00:18]} 19. Qe2 {[%emt 0:00:04]} Rac8 {[%emt 0:01:23]} 20. axb5 {[%emt 0:00:05]} axb5 {[%emt 0:00:00]} 21. Na3 {[%emt 0:00:06]} Ra8 {[%emt 0:00:00]} 22. Bxc4 {[%emt 0:00:12]} bxc4 {[%emt 0:00:00]} 23. Bb2 {[%emt 0:00:03]} d5 {[%emt 0:00:00]} 24. Red1 {[%emt 0:00:05]} d4 {[%emt 0:00:00]} 25. Qxc4 {[%emt 0:00:04]} Qxc4 {[%emt 0:00:00]} 26. Nxc4 {[%emt 0:00:03]} dxc3 {[%emt 0:00:00]} 27. Bxc3 {[%emt 0:00:03]} Rac8 {[%emt 0:00:00]} 28. Nxe5 {[%emt 0:00:05]} Nxe5 {[%emt 0:00:00]} 29. Bxe5 {[%emt 0:00:03]} Bxb4 {[%emt 0:00:00]} 30. Rd7 {[%emt 0:00:07]} Rf7 {[%emt 0:00:06]} 31. Raa7 {[%emt 0:00:02]} Rcf8 {[%emt 0:00:08]} 32. Rxf7 {[%emt 0:00:20]} Rxf7 {[%emt 0:00:02]} 33. Rd7 {[%emt 0:00:41]} Re7 34. Rxe7 {[%emt 0:00:00] Kf7} 1-0

[Event "Djerba Festival Blitz 2025"]
[Site "Djerba"]
[Date "2025.02.21"]
[Round "1.34"]
[White "McDonald, Margaret"]
[Black "Dejardin, Gregoire"]
[Result "0-1"]
[ECO "B10"]
[WhiteElo "1404"]
[BlackElo "1932"]
[PlyCount "44"]
[EventDate "2025.02.15"]
[EventType "swiss"]
[EventCountry "TUN"]
[TimeControl "180+3"]

1. e4 {[%emt 0:00:03]} c6 {[%emt 0:00:02]} 2. Nf3 {[%emt 0:00:04]} d5 {[%emt 0:00:02]} 3. exd5 {[%emt 0:00:04]} cxd5 {[%emt 0:00:02]} 4. Ne5 {[%emt 0:00:02]} Nc6 {[%emt 0:00:05]} 5. d4 {[%emt 0:00:03]} Nf6 {[%emt 0:00:04]} 6. Bb5 {[%emt 0:00:09]} Bd7 {[%emt 0:00:06]} 7. O-O {[%emt 0:00:06]} Nxe5 {[%emt 0:00:03]} 8. Bxd7+ {[%emt 0:00:07]} Nexd7 {[%emt 0:00:03]} 9. Nc3 {[%emt 0:00:09]} e6 {[%emt 0:00:02]} 10. Re1 {[%emt 0:00:03]} Be7 {[%emt 0:00:04]} 11. Bg5 {[%emt 0:00:08]} h6 {[%emt 0:00:03]} 12. Bh4 {[%emt 0:00:04]} O-O {[%emt 0:00:04]} 13. Qf3 {[%emt 0:00:12]} Rc8 {[%emt 0:00:17]} 14. a3 {[%emt 0:00:11]} Re8 {[%emt 0:00:03]} 15. Qe2 {[%emt 0:00:44]} Nf8 {[%emt 0:00:10]} 16. Bg3 {[%emt 0:00:14]} Bd6 {[%emt 0:00:06]} 17. Qf3 {[%emt 0:00:08]} Bxg3 {[%emt 0:00:13]} 18. Qxg3 {[%emt 0:00:07]} Qc7 {[%emt 0:00:03]} 19. Qf3 {[%emt 0:00:08]} Ne4 {[%emt 0:00:23]} 20. h3 {[%emt 0:00:31]} Nxc3 {[%emt 0:00:03]} 21. bxc3 {[%emt 0:00:05]} Qxc3 {[%emt 0:00:04]} 22. Re3 {[%emt 0:00:09]} Qxa1+ {[%emt 0:00:04]} 0-1

[Event "Djerba Festival Blitz 2025"]
[Site "Djerba"]
[Date "2025.02.21"]
[Round "1.35"]
[White "Zouaghi, Ahmed"]
[Black "Chabbouh, Mohamed Rayen"]
[Result "1-0"]
[ECO "C45"]
[WhiteElo "1919"]
[BlackElo "1518"]
[PlyCount "61"]
[EventDate "2025.02.15"]
[EventType "swiss"]
[EventCountry "TUN"]
[TimeControl "180+3"]

1. e4 {[%emt 0:00:04]} e5 {[%emt 0:00:03]} 2. Nf3 {[%emt 0:00:00]} Nc6 {[%emt 0:03:06]} 3. d4 exd4 {[%emt 0:00:00]} 4. Nxd4 {[%emt 0:00:03]} Bc5 {[%emt 0:00:00]} 5. Nb3 {[%emt 0:00:02]} Bb6 {[%emt 0:00:00]} 6. Nc3 {[%emt 0:00:02]} Nge7 {[%emt 0:00:00]} 7. Qe2 {[%emt 0:00:02]} O-O {[%emt 0:00:15]} 8. Be3 Bxe3 {[%emt 0:00:00]} 9. Qxe3 {[%emt 0:00:03]} d6 {[%emt 0:00:00]} 10. O-O-O {[%emt 0:00:03]} Be6 {[%emt 0:00:00]} 11. h3 {[%emt 0:00:06]} a5 {[%emt 0:00:00]} 12. a3 {[%emt 0:00:03]} a4 {[%emt 0:00:00]} 13. Nd4 {[%emt 0:00:02]} Nxd4 {[%emt 0:00:00]} 14. Rxd4 {[%emt 0:00:04]} Qe8 {[%emt 0:00:00]} 15. Bb5 {[%emt 0:00:24]} c6 {[%emt 0:00:00]} 16. Bxa4 {[%emt 0:02:53]} b5 17. Bb3 {[%emt 0:00:00]} c5 {[%emt 0:00:00]} 18. Rxd6 {[%emt 0:00:00]} Bxb3 {[%emt 0:00:00]} 19. cxb3 {[%emt 0:00:00]} b4 {[%emt 0:00:00]} 20. Nb1 {[%emt 0:00:00]} Nf5 {[%emt 0:00:00]} 21. exf5 {[%emt 0:00:00]} Qxe3+ {[%emt 0:00:00]} 22. fxe3 {[%emt 0:00:00]} Rae8 {[%emt 0:00:00]} 23. Re1 {[%emt 0:00:00]} Re5 {[%emt 0:00:00]} 24. g4 {[%emt 0:00:00]} Rfe8 {[%emt 0:00:00]} 25. a4 {[%emt 0:00:00]} h6 {[%emt 0:00:00]} 26. Kd2 {[%emt 0:00:00]} Re4 {[%emt 0:00:00]} 27. Kd3 {[%emt 0:00:00]} Kh7 {[%emt 0:00:00]} 28. Nd2 {[%emt 0:00:00]} R4e5 {[%emt 0:00:00]} 29. Rd7 {[%emt 0:00:00]} f6 {[%emt 0:00:00]} 30. Nc4 {[%emt 0:00:00]} Re4 {[%emt 0:00:00]} 31. Nd6 {[%emt 0:00:00]} 1-0

[Event "Djerba Festival Blitz 2025"]
[Site "Djerba"]
[Date "2025.02.21"]
[Round "1.36"]
[White "Gunduz, Davud"]
[Black "Zenaidi, Sadok"]
[Result "0-1"]
[ECO "B10"]
[WhiteElo "1483"]
[BlackElo "1872"]
[PlyCount "142"]
[EventDate "2025.02.15"]
[EventType "swiss"]
[EventCountry "TUN"]
[TimeControl "180+3"]

1. e4 {[%emt 0:03:06]} c6 {[%emt 0:03:06]} 2. Nf3 {[%emt 0:00:03]} d5 3. exd5 {[%emt 0:00:03]} cxd5 {[%emt 0:00:06]} 4. Ne5 Nc6 {[%emt 0:00:03]} 5. d4 {[%emt 0:00:06]} Nf6 {[%emt 0:00:03]} 6. Bb5 {[%emt 0:00:03]} Qb6 {[%emt 0:00:03]} 7. Nc3 {[%emt 0:00:03]} e6 {[%emt 0:00:03]} 8. O-O {[%emt 0:00:03]} Bd6 9. Bxc6+ {[%emt 0:00:03]} bxc6 {[%emt 0:00:06]} 10. f4 Ba6 {[%emt 0:00:03]} 11. Re1 {[%emt 0:00:06]} c5 {[%emt 0:00:03]} 12. dxc5 {[%emt 0:00:03]} Bxc5+ {[%emt 0:00:03]} 13. Kh1 {[%emt 0:00:03]} O-O {[%emt 0:00:03]} 14. Na4 {[%emt 0:00:03]} Qc7 {[%emt 0:00:03]} 15. Nxc5 {[%emt 0:00:03]} Qxc5 {[%emt 0:00:03]} 16. Be3 Qc7 {[%emt 0:00:03]} 17. Qf3 {[%emt 0:00:06]} Qxc2 {[%emt 0:00:03]} 18. Bd4 {[%emt 0:00:03]} Rac8 {[%emt 0:00:03]} 19. Rac1 {[%emt 0:00:03]} Qxc1 20. Rxc1 Rxc1+ 21. Bg1 Rfc8 {[%emt 0:00:09]} 22. h3 {[%emt 0:00:09]} Bb7 {[%emt 0:00:03]} 23. Qb3 {[%emt 0:00:03]} Ba8 {[%emt 0:00:03]} 24. Kh2 {[%emt 0:00:03]} R1c7 {[%emt 0:00:03]} 25. Qa4 {[%emt 0:00:03]} Ne4 {[%emt 0:00:03]} 26. Bxa7 {[%emt 0:00:03]} f6 {[%emt 0:00:03]} 27. Nf3 {[%emt 0:00:03]} Kf7 {[%emt 0:00:03]} 28. Bb6 {[%emt 0:00:03]} Rb7 29. Bd4 {[%emt 0:00:03]} Re7 {[%emt 0:00:06]} 30. Qa6 {[%emt 0:00:03]} Bb7 31. Qe2 {[%emt 0:00:03]} Ra8 {[%emt 0:00:06]} 32. a3 Rc8 {[%emt 0:00:03]} 33. b4 {[%emt 0:00:06]} Rec7 34. a4 {[%emt 0:00:03]} Rc4 {[%emt 0:00:06]} 35. Bc5 {[%emt 0:00:03]} Nxc5 {[%emt 0:00:03]} 36. bxc5 {[%emt 0:00:03]} R8xc5 {[%emt 0:00:03]} 37. Qb2 {[%emt 0:00:03]} Bc8 {[%emt 0:00:03]} 38. Qb6 Rc6 {[%emt 0:00:03]} 39. Qa7+ {[%emt 0:00:06]} Rc7 {[%emt 0:00:03]} 40. Qb6 Rb7 {[%emt 0:00:03]} 41. Qd8 {[%emt 0:00:06]} Bd7 42. Qa8 Rbc7 43. a5 Ra4 44. Qh8 h6 45. Qh7 Rxa5 46. Nd4 Ra4 47. Nf3 Ra2 {[%emt 0:00:21]} 48. Qb1 {[%emt 0:00:21]} Rcc2 49. Qf1 {[%emt 0:00:03]} Rxg2+ 50. Qxg2 Rxg2+ 51. Kxg2 Bc6 {[%emt 0:00:12]} 52. Kf2 {[%emt 0:00:09]} Ke7 {[%emt 0:00:03]} 53. h4 {[%emt 0:00:03]} g6 {[%emt 0:00:03]} 54. Ke3 {[%emt 0:00:03]} Kd6 {[%emt 0:00:03]} 55. Kd4 {[%emt 0:00:03]} Bb5 {[%emt 0:00:03]} 56. Nd2 e5+ {[%emt 0:00:03]} 57. fxe5+ {[%emt 0:00:06]} fxe5+ {[%emt 0:00:03]} 58. Ke3 {[%emt 0:00:03]} Bc4 {[%emt 0:00:03]} 59. Nb1 {[%emt 0:00:03]} Kc5 {[%emt 0:00:03]} 60. Nc3 {[%emt 0:00:03]} d4+ {[%emt 0:00:03]} 61. Kd2 {[%emt 0:00:03]} dxc3+ {[%emt 0:00:03]} 62. Kxc3 h5 {[%emt 0:00:03]} 63. Kd2 Kd4 64. Ke1 e4 65. Kf2 Kd3 66. Ke1 Bg8 67. Kd1 {[%emt 0:00:18]} Bh7 {[%emt 0:00:15]} 68. Ke1 {[%emt 0:00:03]} e3 {[%emt 0:00:03]} 69. Kd1 {[%emt 0:00:03]} e2+ {[%emt 0:00:03]} 70. Ke1 Bg8 {[%emt 0:00:03]} 71. Kf2 Kd2 {[%emt 0:00:03] Kxe2+} 0-1